bitfinex/quotes_ETHUSD_20250715
["timestamp","ask_amount","ask_price","bid_price","bid_amount"]
[1752549084167,3.40183397,2939.6,2938.8,3.4027229]
[1752549084373,3.43596841,2939.5,2938.9,3.40255997]
[1752549084673,6.80410968,2939.4,2938.2,0.005]
[1752549084870,0.03402054,2939.3,2938.6,3.40294453]
[1752549085070,0.03402054,2939.3,2938.2,0.005]
[1752549085307,0.03402054,2939.3,2938.3,3.40332845]
[1752549085609,0.03402054,2939.3,2938.2,0.005]
[1752549085815,3.40251998,2939.0,2938.2,0.005]
[1752549086030,3.40277317,2938.8,2938.2,3.40836945]
[1752549086241,0.7512,2939.7,2938.8,3.40274942]
[1752549086527,0.47522054,2939.6,2938.2,0.005]
[1752549086727,3.40258731,2939.0,2938.2,3.40841909]
[1752549086929,0.03402054,2938.9,2938.2,0.005]
[1752549087091,3.40309007,2938.6,2938.2,0.005]
[1752549087287,3.43712759,2938.5,2938.2,0.005]
[1752549087490,0.47522054,2938.5,2938.2,0.005]
[1752549087722,0.03402054,2938.5,2938.2,0.005]
[1752549088129,0.03402054,2938.6,2938.2,0.005]
[1752549088313,0.03402054,2939.1,2938.8,0.002]
[1752549089108,0.03402054,2939.1,2939.0,3.40251786]
[1752549089302,0.03402054,2939.1,2936.9,0.4369]
[1752549089303,0.4412,2939.1,2936.9,0.4369]
[1752549089506,0.8027,2938.9,2937.4,3.40428517]
[1752549089748,10.03402054,2938.8,2938.1,3.40348847]
[1752549089915,0.03402054,2938.7,2937.6,3.40408968]
[1752549090115,0.47522054,2938.7,2937.6,3.40409195]
[1752549090344,0.4412,2938.6,2937.3,0.4369]
[1752549090504,0.03402054,2938.5,2937.2,3.40452901]
[1752549090709,3.40332845,2938.3,2937.6,3.40407008]
[1752549090945,3.43734899,2938.3,2937.6,3.40407008]
[1752549091253,3.87854899,2938.3,2936.9,3.40491901]
[1752549091425,3.87854899,2938.3,2936.8,0.8166]
[1752549091609,3.87854899,2938.3,2937.3,3.40442304]
[1752549091809,3.87854899,2938.3,2937.3,3.40442539]
[1752549092005,13.87854899,2938.3,2936.8,0.8166]
[1752549092212,14.64082845,2938.3,2936.2,4.66900717]
[1752549092421,14.64082845,2938.3,2937.5,3.40416205]
[1752549092747,22.23882845,2938.3,2937.1,3.40469955]
[1752549093050,22.23882845,2938.3,2936.6,0.4369]
[1752549093346,12.23082845,2938.3,2937.6,3.40408397]
[1752549093558,1.2375,2938.3,2936.7,3.40515234]
[1752549093732,12.22582845,2938.3,2937.6,3.40406541]
[1752549093936,12.22582845,2938.3,2937.4,3.40435559]
[1752549094257,12.22582845,2938.3,2937.3,3.40444805]
[1752549094456,1.2375,2938.3,2936.9,0.1696]
[1752549094677,8.8085,2938.3,2937.2,0.1696]
[1752549094834,0.4412,2938.9,2938.4,3.40312021]
[1752549095160,8.165,2939.5,2938.4,0.34081202]
[1752549095317,0.7989,2939.6,2938.6,0.1696]
[1752549095318,0.03402054,2939.4,2938.6,0.1696]
[1752549095523,0.1696,2939.5,2938.9,3.40263363]
[1752549095859,0.1696,2939.5,2939.4,3.40205484]
[1752549096087,0.03402054,2940.0,2939.9,3.40147624]
[1752549096304,0.1696,2939.8,2939.7,3.40170765]
[1752549096768,0.1696,2939.8,2939.3,0.1696]
[1752549097077,0.1696,2939.8,2939.0,0.4369]
[1752549097078,0.1696,2939.7,2939.5,3.40192491]
[1752549097581,0.1696,2939.7,2939.1,0.1696]
[1752549098084,0.03402054,2940.1,2939.1,0.35721809]
[1752549098281,0.1696,2940.1,2939.5,0.1696]
[1752549098469,0.1696,2940.1,2940.0,3.40136054]
[1752549098675,0.1037004,2942.8,2940.1,0.8147]
[1752549098878,0.49491917,2943.1,2942.3,3.39870169]
[1752549099184,1e-08,2942.4,2942.3,3.17764952]
[1752549099545,1e-08,2942.4,2942.3,3.81813653]
[1752549099742,1e-08,2942.4,2942.3,3.78414952]
[1752549100577,1e-08,2942.4,2942.3,3.81813653]
[1752549100780,1e-08,2942.4,2942.3,3.78414952]
[1752549101183,1e-08,2942.4,2942.3,3.81813653]
[1752549101378,1e-08,2942.4,2942.3,3.78414952]
[1752549101617,1e-08,2942.4,2942.3,3.34724952]
[1752549101885,1e-08,2942.4,2942.3,3.79094952]
[1752549102318,1e-08,2942.4,2942.3,3.62134952]
[1752549102892,1e-08,2942.4,2942.3,5.19035449]
[1752549103226,1e-08,2942.4,2942.3,13.30435449]
[1752549103422,1e-08,2942.4,2942.3,13.27036748]
[1752549103723,1e-08,2942.4,2942.3,4.45434952]
[1752549104021,1e-08,2942.4,2942.3,4.48833653]
[1752549104223,1e-08,2942.4,2942.3,4.45434952]
[1752549104400,1e-08,2942.4,2942.3,11.98734952]
[1752549104603,1e-08,2942.4,2942.3,12.53734952]
[1752549104922,1e-08,2942.4,2942.3,24.47085009]
[1752549105426,1.26895883,2944.7,2944.0,3.39662824]
[1752549105725,1.26895883,2944.7,2944.3,0.17726979]
[1752549105927,0.788,2944.9,2944.3,0.17726979]
[1752549106125,3.39582147,2944.8,2944.3,0.17726979]
[1752549106286,0.443,2944.7,2944.3,0.17726979]
[1752549106488,3.39609088,2944.6,2944.3,0.17726979]
[1752549106807,3.39627767,2944.4,2944.3,0.17726979]
[1752549106993,3.39708936,2943.7,2943.1,3.39768109]
[1752549107198,3.39684958,2944.0,2942.5,0.4437]
[1752549107199,3.3972831,2943.6,2942.5,0.4437]
[1752549107396,1.16654549,2944.4,2942.7,3.39823971]
[1752549107604,1.16654549,2944.4,2942.6,0.4437]
[1752549107605,3.39663793,2944.1,2943.4,3.39740075]
[1752549107805,3.39639646,2944.3,2942.9,3.39800876]
[1752549108094,0.443,2944.4,2943.0,0.47767893]
[1752549108095,3.83928128,2944.4,2943.0,0.47767893]
[1752549108400,0.443,2944.4,2943.1,3.39777785]
[1752549108604,0.7944,2944.3,2943.7,3.39708047]
[1752549108801,0.443,2944.4,2944.0,3.39663952]
[1752549108998,10.0,2944.8,2944.3,3.39632122]
[1752549108999,10.443,2944.8,2944.3,3.39632122]
[1752549109203,0.443,2944.8,2943.5,4.22028928]
[1752549109402,0.443,2944.8,2943.6,3.3972007]
[1752549109602,3.39615303,2944.6,2943.5,0.789]
[1752549109940,3.39600457,2944.7,2944.0,3.396715]
[1752549110105,3.77998652,2944.6,2943.9,3.39675545]
[1752549110294,0.443,2944.8,2943.6,3.3972007]
[1752549110494,3.39623061,2944.5,2943.5,0.789]
[1752549110695,3.39634103,2944.4,2943.8,3.39690723]
[1752549110901,3.39657206,2944.2,2943.6,3.39711133]
[1752549111099,3.39657206,2944.2,2943.7,0.31358224]
[1752549111306,3.39680671,2944.0,2943.7,0.31358224]
[1752549111643,3.39685451,2943.9,2943.8,0.31353224]
[1752549111801,3.83985451,2943.9,2943.8,0.31353224]
[1752549112003,3.3969699,2943.8,2941.9,1.2327]
[1752549112203,0.7585,2942.5,2940.7,0.789]
[1752549112419,0.1696,2941.4,2941.3,3.39977368]
[1752549112628,7.452,2942.0,2940.6,0.17731683]
[1752549112942,0.1696,2941.7,2941.1,0.1696]
[1752549113095,0.1696,2941.2,2940.7,3.40055088]
[1752549113300,0.1696,2941.2,2940.6,0.1696]
[1752549113548,3.84223084,2941.9,2940.7,0.0340055]
[1752549113549,0.443,2941.9,2940.7,0.0340055]
[1752549113744,0.1696,2941.9,2941.0,0.1696]
[1752549113902,0.1696,2941.9,2941.6,3.39941744]
[1752549114102,0.1696,2941.9,2941.5,3.3995941]
[1752549114303,3.84238286,2941.8,2940.9,3.40022068]
[1752549114497,0.1696,2941.5,2941.0,0.1696]
[1752549114801,0.1696,2941.5,2940.3,0.4437]
[1752549114802,3.3997578,2941.4,2940.8,3.40041139]
[1752549115002,0.443,2941.9,2940.3,0.4437]
[1752549115209,0.1696,2941.4,2940.9,0.1696]
[1752549115410,10.0,2942.1,2941.3,3.39980913]
[1752549115756,0.1696,2941.8,2941.6,3.39942999]
[1752549115956,0.443,2942.4,2941.2,3.3999264]
[1752549116171,0.443,2942.4,2941.4,0.1696]
[1752549116172,0.1696,2942.0,2941.4,0.1696]
[1752549116385,3.56899565,2941.7,2941.2,0.1696]
[1752549116541,3.39962604,2941.5,2940.2,0.789]
[1752549116864,0.1696,2941.1,2940.7,3.40055088]
[1752549117079,0.1696,2941.1,2940.6,0.1696]
[1752549117428,3.84323533,2941.0,2940.2,3.40109602]
[1752549117775,0.1696,2940.6,2940.1,0.1696]
[1752549117927,0.1696,2940.6,2940.1,3.5708115]
[1752549118129,0.1696,2940.6,2940.2,3.40112553]
[1752549118328,0.8289,2941.4,2940.2,0.80077255]
[1752549118583,3.84292451,2941.3,2939.3,0.4437]
[1752549118772,0.1696,2940.7,2940.5,3.40073338]
[1752549119129,0.1696,2940.7,2940.2,0.1696]
[1752549119347,0.1696,2940.7,2938.7,0.25036542]
[1752549119348,0.1696,2940.3,2939.7,0.1696]
[1752549119530,0.443,2941.1,2939.8,3.43560785]
[1752549119749,0.1696,2940.8,2940.7,3.40044282]
[1752549119972,7.371,2941.3,2940.2,0.03401129]
[1752549120161,0.8289,2941.4,2941.3,3.3998572]
[1752549120394,7.5376,2941.6,2940.7,0.0340055]
[1752549120596,7.5376,2941.6,2941.5,3.39962604]
[1752549120799,7.5376,2941.6,2941.0,3.4001548]
[1752549120800,0.7953,2944.5,2941.6,0.7906]
[1752549120956,0.7953,2944.5,2942.7,0.7906]
[1752549121255,0.7953,2944.5,2944.2,3.3964019]
[1752549121458,0.443,2944.4,2943.7,0.03397085]
[1752549121657,3.39581635,2944.8,2942.8,0.4437]
[1752549121994,3.39592098,2944.8,2944.0,3.39664979]
[1752549122165,3.39592098,2944.8,2942.8,3.84175689]
[1752549122166,0.38388164,2944.7,2943.9,0.03396854]
[1752549122367,0.443,2944.9,2943.5,3.39731612]
[1752549122687,0.7953,2945.0,2944.7,3.39592713]
[1752549122881,0.443,2945.4,2944.7,3.39585577]
[1752549123082,0.443,2945.4,2944.9,3.3956225]
[1752549123083,7.847,2945.4,2944.9,3.3956225]
[1752549123281,3.83832686,2945.3,2944.6,3.39596473]
[1752549123468,3.83832686,2945.3,2943.2,1.2343]
[1752549123469,0.443,2945.2,2943.2,1.2343]
[1752549123676,0.7953,2944.5,2943.2,0.7906]
[1752549123900,7.392,2944.4,2943.8,3.39685946]
[1752549124077,1.2383,2944.5,2943.2,3.3976624]
[1752549124258,1.2383,2944.5,2943.5,3.39727243]
[1752549124458,1.2383,2944.5,2943.6,3.43108717]
[1752549124459,0.7953,2944.5,2943.6,3.43108717]
[1752549124665,1.2383,2945.1,2943.6,0.033972]
[1752549124859,8.1733,2945.1,2944.4,3.39616805]
[1752549125098,0.7953,2945.1,2943.8,4.15212842]
[1752549125303,0.444,2945.5,2944.1,3.39662375]
[1752549125599,0.001,2945.5,2945.2,3.39524032]
[1752549125799,0.88432327,2945.7,2944.3,0.7552]
[1752549125973,0.001,2946.5,2945.3,9.26389441]
[1752549126175,2.377009,2946.3,2945.4,0.03395124]
[1752549126375,0.001,2946.5,2944.9,0.4437]
[1752549126606,0.443,2946.4,2944.4,0.4437]
[1752549126788,3.39408749,2946.3,2944.4,0.4437]
[1752549126991,0.443,2946.4,2943.5,0.7552]
[1752549126992,0.7781,2945.9,2943.5,0.7552]
[1752549127306,3.39566827,2945.0,2944.3,3.39629326]
[1752549127669,8.0946011,2945.1,2943.5,4.59617918]
[1752549128005,0.7781,2944.8,2943.6,0.31452749]
[1752549128206,0.7781,2944.8,2943.7,0.31452749]
[1752549128506,3.39627648,2944.5,2942.5,1.2023]
[1752549128797,3.39627648,2944.5,2943.1,3.39777333]
[1752549128798,3.39705354,2943.8,2943.1,3.39777333]
[1752549128999,0.443,2944.4,2943.2,0.34899258]
[1752549129190,0.443,2944.4,2943.3,0.31501596]
[1752549129385,0.96213536,2944.4,2943.4,3.39734755]
[1752549129587,3.39678448,2944.0,2943.3,3.39751269]
[1752549129805,0.7126011,2944.5,2943.4,10.79580726]
[1752549130098,0.443,2945.1,2944.3,3.39636286]
[1752549130299,0.443,2945.1,2943.5,1.07958073]
[1752549130504,7.357,2945.0,2944.0,3.39664935]
[1752549130679,0.443,2945.1,2943.5,3.39731612]
[1752549130876,0.1696,2944.9,2944.4,0.1696]
[1752549131080,0.1696,2945.1,2945.0,3.39558573]
[1752549131403,0.1696,2945.4,2945.3,3.39512859]
[1752549131776,0.1696,2945.4,2945.0,0.1696]
[1752549132091,0.1696,2945.1,2944.5,3.39609382]
[1752549132294,0.1696,2944.8,2944.5,3.39609382]
[1752549132463,0.1696,2944.8,2944.5,3.39605172]
[1752549132669,0.1696,2944.8,2944.7,3.39593167]
[1752549133003,3.3952599,2945.3,2943.8,3.39689005]
[1752549133004,7.323,2945.3,2944.6,3.39603173]
[1752549133203,0.1696,2944.8,2944.7,0.31531373]
[1752549133507,0.6382,2944.8,2944.3,0.1696]
[1752549133803,10.81949166,2945.2,2943.9,0.1696]
[1752549133804,0.1696,2944.4,2943.9,0.1696]
[1752549133977,4.67762539,2944.7,2942.9,0.7776]
[1752549133978,7.7776,2944.3,2942.9,0.7776]
[1752549134177,0.1696,2943.9,2943.8,3.3969699]
[1752549134389,0.813,2944.7,2943.6,0.203572]
[1752549134390,0.1696,2944.1,2943.6,0.203572]
[1752549134775,0.813,2944.7,2943.4,3.39741817]
[1752549134776,0.4686,2944.0,2943.4,3.39741817]
[1752549135002,0.1696,2943.8,2943.2,0.1696]
[1752549135203,0.1696,2943.8,2943.7,3.3970853]
[1752549135370,0.1696,2944.2,2944.0,3.39663071]
[1752549135767,0.1696,2944.2,2943.6,0.1696]
[1752549135963,10.74556,2944.2,2942.8,3.39812423]
[1752549136168,14.14210597,2944.2,2943.6,3.39717971]
[1752549136397,7.277,2944.1,2943.6,3.39717971]
[1752549136611,10.0,2944.2,2943.8,3.39690537]
[1752549136806,7.275,2944.3,2943.9,3.39676311]
[1752549137101,0.4686,2944.4,2944.1,3.39655082]
[1752549137405,0.4686,2944.4,2943.0,3.3978933]
[1752549137406,0.4686,2944.4,2944.0,3.39672471]
[1752549137608,7.264,2944.3,2944.2,3.39650647]
[1752549137904,7.7326,2944.3,2942.9,0.4342]
[1752549138203,4.12292637,2944.2,2943.5,3.39722504]
[1752549138362,0.7264,2944.2,2942.5,0.4342]
[1752549138567,0.7264,2944.2,2942.6,0.03398355]
[1752549138796,7.243,2944.1,2943.9,3.39676989]
[1752549138995,0.813,2944.7,2944.4,3.39621416]
[1752549138996,8.048,2944.7,2944.4,3.39621416]
[1752549139242,8.048,2944.7,2944.3,3.39636343]
[1752549139420,0.813,2944.7,2943.7,3.3970853]
[1752549139743,8.151,2944.8,2944.7,3.39593167]
[1752549139927,0.8232,2945.7,2944.6,3.396047]
[1752549140271,7.222,2945.6,2944.3,0.4342]
[1752549140417,7.222,2945.6,2944.7,3.39590614]
[1752549140622,7.222,2945.6,2945.0,3.39551261]
[1752549140814,7.222,2945.6,2945.3,3.39516697]
[1752549141006,7.6906,2945.6,2945.1,3.395391]
[1752549141215,3.39520041,2945.4,2944.8,3.39581601]
[1752549141423,11.07061026,2945.5,2944.8,3.39581601]
[1752549141638,3.39519452,2945.4,2944.8,3.39581601]
[1752549141838,7.203,2945.3,2944.9,3.71034854]
[1752549142110,7.203,2945.3,2945.0,0.3146492]
[1752549142111,4.17347044,2945.1,2945.0,0.3146492]
[1752549142465,7.969,2945.1,2945.0,0.3146492]
[1752549142629,8.4376,2945.1,2945.0,0.3146492]
[1752549142837,11.83307044,2945.1,2945.0,0.3146492]
[1752549143145,21.83307044,2945.1,2945.0,0.3146492]
[1752549143505,14.64207044,2945.1,2945.0,0.3146492]
[1752549143743,8.4206,2945.1,2945.0,0.31446392]
[1752549144148,0.778,2945.1,2945.0,3.71004965]
[1752549144446,0.4686,2945.5,2945.0,0.31446392]
[1752549144650,7.164,2945.4,2945.1,0.31446392]
[1752549144848,0.4686,2945.5,2945.2,0.31446392]
[1752549145007,0.778,2945.6,2945.3,0.31435793]
[1752549145209,7.151,2945.5,2945.4,0.31445702]
[1752549145444,0.778,2945.6,2945.5,3.39500933]
[1752549145610,8.151,2946.1,2945.5,0.31445702]
[1752549145809,0.4686,2946.0,2945.6,0.31445702]
[1752549146019,7.6166,2945.9,2945.7,0.31445702]
[1752549146252,10.54255359,2945.9,2945.8,0.31445702]
[1752549146669,3.56432319,2945.8,2945.2,3.39535185]
[1752549146971,3.3951246,2945.4,2945.3,0.314389]
[1752549147170,4.1669246,2945.4,2945.3,0.314389]
[1752549147575,14.6355246,2945.4,2945.3,0.314389]
[1752549148232,21.7575246,2945.4,2945.3,0.314389]
[1752549148439,21.7515246,2945.4,2945.3,0.314389]
[1752549148640,7.113,2945.4,2945.3,0.314389]
[1752549148843,8.151,2946.1,2945.3,0.314389]
[1752549149171,8.151,2946.1,2945.4,0.314389]
[1752549149172,3.39498314,2945.6,2945.4,0.314389]
[1752549149372,3.86319159,2945.9,2945.5,0.31547304]
[1752549149562,3.86319159,2945.9,2945.1,3.39540369]
[1752549149563,0.4686,2945.9,2945.6,0.31547304]
[1752549149769,7.106,2945.8,2945.7,0.31547304]
[1752549150075,8.151,2946.1,2945.8,3.39460121]
[1752549150276,8.151,2946.1,2946.0,3.39443312]
[1752549150476,15.248,2946.1,2946.0,0.31547304]
[1752549150778,15.7166,2946.1,2946.0,0.31547304]
[1752549150986,8.6196,2946.1,2946.0,0.31547304]
[1752549151154,15.7156,2946.1,2946.0,0.31547304]
[1752549151475,19.10991791,2946.1,2946.0,0.31547304]
[1752549152160,29.10991791,2946.1,2946.0,0.31547304]
[1752549152985,0.001,2946.5,2946.4,3.3939723]
[1752549153163,0.001,2946.5,2946.4,0.31547304]
[1752549153331,16.0688,2946.5,2946.4,0.31547304]
[1752549153531,6.0688,2946.5,2946.4,0.31547304]
[1752549153766,0.7842,2946.5,2946.4,0.31547304]
[1752549153967,11.72865711,2946.5,2946.4,0.31547304]
[1752549154748,8.3348,2946.5,2946.4,0.31547304]
[1752549154944,0.001,2946.5,2946.4,3.70944534]
[1752549155211,1.19007688,2948.4,2946.5,10.0]
[1752549155347,3.86017214,2948.5,2946.6,2.51457072]
[1752549155715,0.7511,2948.7,2946.9,3.39334791]
[1752549155716,3.39189742,2948.3,2946.9,3.39334791]
[1752549155863,11.0153011,2948.4,2947.0,0.31523073]
[1752549156188,14.49339533,2948.3,2947.5,3.3926026]
[1752549156395,14.49339533,2948.3,2947.6,0.31516124]
[1752549156563,3.39208221,2948.1,2947.7,0.31516518]
[1752549156766,0.4686,2948.2,2947.2,3.39297909]
[1752549156965,0.1696,2947.6,2947.3,0.31516451]
[1752549157167,10.52770568,2947.5,2947.4,0.31516451]
[1752549157381,10.99630568,2947.5,2947.4,0.31516451]
[1752549157953,20.99630568,2947.5,2947.4,0.31516451]
[1752549158255,0.8298,2947.2,2945.7,3.39477359]
[1752549158499,3.39427768,2946.2,2945.7,0.1696]
[1752549158789,20.97776616,2947.1,2945.4,0.8139]
[1752549158790,7.2856,2946.1,2945.5,0.1696]
[1752549158954,10.27261395,2946.1,2945.5,0.1696]
[1752549159358,3.39445064,2946.0,2945.5,0.1696]
[1752549159559,3.39452502,2946.0,2944.8,0.771]
[1752549159758,0.4686,2946.0,2944.8,1.23111997]
[1752549159986,0.1696,2945.6,2945.1,0.1696]
[1752549160158,7.095,2945.5,2945.2,3.39528058]
[1752549160358,0.1696,2945.6,2945.2,3.39534898]
[1752549160583,0.1696,2945.6,2945.3,0.03395239]
[1752549160783,7.088,2945.8,2945.5,0.1696]
[1752549161100,3.39335193,2947.0,2945.5,0.1696]
[1752549161101,1.2398,2947.1,2945.6,0.50434894]
[1752549161307,0.1696,2946.6,2945.7,0.9628]
[1752549161505,7.08,2946.9,2946.0,3.39443312]
[1752549161713,7.2496,2946.9,2946.6,3.39372527]
[1752549161930,7.08,2946.9,2946.5,0.03393857]
[1752549162066,10.47342683,2946.9,2946.2,3.39412383]
[1752549162270,7.2496,2946.9,2946.4,3.39396045]
[1752549162508,7.2496,2946.9,2946.3,0.1696]
[1752549162714,0.1696,2946.6,2946.1,0.1696]
[1752549162918,3.39406349,2946.4,2946.1,0.1696]
[1752549163119,3.39421105,2946.2,2945.8,0.1696]
[1752549163432,3.56445537,2945.7,2945.2,0.1696]
[1752549163718,6.64560947,2945.6,2945.2,0.1696]
[1752549163948,6.81520947,2945.6,2945.2,0.1696]
[1752549164267,3.3950425,2945.5,2945.2,0.1696]
[1752549164418,3.39513938,2945.4,2944.8,0.7649]
[1752549164618,10.49902762,2945.6,2944.9,0.1696]
[1752549164926,3.39576397,2944.9,2944.2,3.39644321]
[1752549165137,7.04,2944.8,2944.4,0.1696]
[1752549165350,0.1696,2944.9,2944.7,3.39593167]
[1752549165655,7.029,2945.3,2944.8,0.33959317]
[1752549165955,7.026,2945.3,2944.9,0.1696]
[1752549166170,0.1696,2945.4,2945.0,0.03395585]
[1752549166347,7.027,2945.6,2945.2,0.1696]
[1752549166570,7.02,2945.6,2945.2,3.56488997]
[1752549166718,0.1696,2945.8,2945.2,0.1696]
[1752549166919,3.3953638,2945.2,2944.7,0.7665]
[1752549167152,7.017,2945.1,2944.2,0.8279]
[1752549167349,0.1696,2944.9,2944.4,3.56580359]
[1752549167535,0.1696,2944.9,2944.4,0.1696]
[1752549168928,0.1696,2944.9,2944.5,3.39608223]
[1752549169141,0.1696,2944.9,2944.4,0.1696]
[1752549169420,0.1696,2944.9,2944.4,3.56582988]
[1752549170066,6.973,2944.8,2943.9,3.39681184]
[1752549170242,6.973,2944.7,2944.4,3.56580542]
[1752549170563,7.1416,2944.9,2944.6,3.396047]
[1752549170852,0.1696,2945.3,2945.0,3.39550876]
[1752549171051,0.1696,2945.3,2945.1,0.31624406]
[1752549171253,0.7907,2945.9,2945.2,3.71150131]
[1752549171474,0.1696,2945.5,2945.3,0.31624406]
[1752549171645,0.1696,2945.5,2945.4,0.31624406]
[1752549172044,10.51260933,2945.5,2945.4,0.31624406]
[1752549172248,10.97110933,2945.5,2945.4,0.31624406]
[1752549173148,3.3952027,2945.4,2944.9,0.1696]
[1752549173474,3.3952027,2945.4,2945.0,0.31655314]
[1752549173774,3.3952027,2945.4,2945.1,0.31655314]
[1752549173935,3.3952027,2945.4,2944.9,0.1696]
[1752549173936,3.3952027,2945.4,2945.2,0.31655314]
[1752549174131,0.1696,2945.5,2945.3,0.31655314]
[1752549174448,7.0876,2945.8,2945.6,3.39481102]
[1752549174646,6.918,2945.8,2945.7,3.71133197]
[1752549175031,6.918,2945.8,2945.7,0.31655314]
[1752549175235,10.0,2946.6,2945.7,0.31655314]
[1752549175236,0.7536,2948.1,2945.9,3.39454835]
[1752549175436,0.4585,2948.0,2946.7,3.39354235]
[1752549175639,6.933,2947.9,2946.8,0.31655314]
[1752549175838,10.0,2947.6,2946.9,0.31655314]
[1752549176066,3.39359963,2946.8,2945.6,4.14571528]
[1752549176268,0.7768,2946.6,2945.4,3.39509202]
[1752549176482,0.7768,2946.6,2946.0,3.39432634]
[1752549176686,0.7768,2946.6,2946.0,3.39433418]
[1752549176883,0.4585,2946.5,2945.7,3.39476452]
[1752549177093,0.4585,2946.5,2945.2,3.39535515]
[1752549177267,0.4585,2946.5,2945.3,0.03395239]
[1752549177472,0.001,2946.7,2946.5,3.39385711]
[1752549177680,0.001,2946.7,2946.6,3.39374193]
[1752549178490,6.91,2947.2,2947.1,3.39316616]
[1752549178658,0.4585,2947.8,2947.6,3.39251419]
[1752549178859,6.903,2947.6,2947.5,3.39270568]
[1752549181418,6.873,2947.8,2947.7,3.39247548]
[1752549181780,8.148,2948.4,2947.1,0.7571]
[1752549181977,6.862,2948.3,2948.2,3.39183816]
[1752549182579,8.148,2948.4,2948.2,3.39185114]
[1752549182781,7.3125,2948.3,2947.3,3.3929359]
[1752549182995,7.3125,2948.3,2947.9,3.39217878]
[1752549183318,3.8504681,2948.2,2947.5,3.39262705]
[1752549183525,0.4585,2948.2,2947.2,3.39305103]
[1752549183842,6.841,2948.1,2947.8,3.39227238]
[1752549184025,6.841,2948.1,2947.9,3.39217682]
[1752549184189,0.4585,2948.0,2947.3,3.39290049]
[1752549184387,1.2694,2948.0,2946.6,0.8122]
[1752549184587,3.39292219,2947.4,2946.2,4.2063631]
[1752549184786,7.2875,2947.3,2945.7,4.64454249]
[1752549185015,0.8109,2947.1,2946.4,3.39390487]
[1752549185199,0.8109,2947.1,2946.3,3.39402569]
[1752549185526,0.1696,2946.6,2946.5,3.39385711]
[1752549185725,6.9866,2946.6,2946.5,3.39385711]
[1752549185885,0.1696,2946.6,2946.5,3.39385711]
[1752549186085,0.1696,2947.3,2946.5,0.1696]
[1752549186350,7.2715,2947.2,2945.9,0.4377]
[1752549186502,0.1696,2946.8,2946.5,3.39384983]
[1752549186830,6.811,2946.7,2946.4,3.39395979]
[1752549186988,6.811,2946.7,2946.2,3.3941838]
[1752549186989,0.1696,2946.6,2946.5,3.39385711]
[1752549187188,6.807,2946.8,2946.7,3.39362676]
[1752549187617,6.807,2946.8,2946.7,3.70990209]
[1752549188232,0.1696,2947.2,2946.7,0.31627533]
[1752549188538,0.4585,2947.6,2947.0,3.39327724]
[1752549188539,6.802,2947.1,2947.0,3.39327724]
[1752549188853,6.802,2947.1,2947.0,3.70955257]
[1752549189000,6.783,2947.2,2947.1,3.39316616]
[1752549189200,6.783,2947.2,2947.1,3.70944149]
[1752549189655,0.1696,2947.5,2947.4,3.39282079]
[1752549189819,0.4585,2948.1,2947.8,3.39229422]
[1752549190008,0.1696,2947.9,2947.8,3.39229422]
[1752549190211,0.1696,2947.9,2947.8,3.70835061]
[1752549190635,6.9416,2947.9,2947.8,3.70835061]
[1752549190847,6.9416,2947.9,2947.7,3.39247204]
[1752549190848,0.1696,2947.8,2947.2,0.1696]
[1752549191111,0.1696,2947.7,2947.2,3.39297973]
[1752549191311,0.1696,2947.4,2947.2,3.39297973]
[1752549191526,6.759,2947.3,2947.2,3.39297973]
[1752549191734,6.759,2947.3,2946.9,0.1696]
[1752549191914,6.759,2947.3,2946.7,0.8326]
[1752549191915,7.2227,2947.3,2946.2,1.2187]
[1752549192138,0.1696,2947.2,2946.7,3.39355043]
[1752549192456,0.1696,2946.9,2946.8,3.3935116]
[1752549192813,6.748,2947.1,2947.0,3.3932813]
[1752549193150,6.9106,2947.7,2947.4,3.39273989]
[1752549193305,6.9106,2947.7,2947.5,3.39264152]
[1752549193512,6.9106,2947.7,2947.1,0.937]
[1752549193810,6.741,2947.7,2947.4,3.39272355]
[1752549194032,6.741,2947.7,2947.5,3.39269455]
[1752549194236,6.741,2947.7,2947.1,0.7674]
[1752549194420,6.741,2947.7,2947.3,3.39282149]
[1752549194611,6.741,2947.7,2947.3,3.39282885]
[1752549194947,7.2047,2947.7,2947.3,3.39288791]
[1752549195169,0.4637,2947.6,2947.0,3.39319671]
[1752549195372,3.39279121,2947.5,2946.7,0.7674]
[1752549195674,3.3929359,2947.3,2946.2,0.7674]
[1752549195833,6.711,2947.2,2946.6,3.39370115]
[1752549196388,6.711,2947.2,2946.2,0.7674]
[1752549196580,3.39331395,2947.0,2946.4,3.39391183]
[1752549197073,3.39352369,2946.8,2946.2,3.39409164]
[1752549197262,3.39352369,2946.8,2945.6,0.69432507]
[1752549197263,7.9535,2946.7,2945.2,0.7674]
[1752549197449,3.39409257,2946.3,2945.7,3.39470768]
[1752549197638,6.692,2946.2,2945.9,3.39454356]
[1752549197840,6.692,2946.2,2946.0,3.39434981]
[1752549198043,7.1557,2946.2,2945.7,3.39468987]
[1752549198268,3.39435847,2946.1,2945.2,0.7674]
[1752549198431,7.1557,2946.2,2945.7,3.39471503]
[1752549198636,0.4637,2946.1,2944.7,4.21514095]
[1752549198831,3.39461003,2945.9,2945.3,3.39514847]
[1752549199071,6.678,2945.8,2945.4,0.03395124]
[1752549199279,6.678,2945.8,2944.7,0.8193]
[1752549199463,6.678,2945.8,2945.4,3.39511383]
[1752549199670,0.4637,2945.7,2945.4,3.39511383]
[1752549199974,0.4637,2945.7,2944.9,3.39566533]
[1752549199975,0.4637,2945.6,2945.1,3.39546742]
[1752549200175,0.4637,2945.5,2945.2,3.39526638]
[1752549200563,0.4637,2945.4,2944.8,3.39581635]
[1752549200773,6.659,2945.3,2945.1,3.39545493]
[1752549201077,7.1227,2945.3,2944.3,3.39639303]
[1752549201279,0.4637,2945.7,2945.2,3.39535515]
[1752549201481,7.1167,2945.6,2944.4,0.89323207]
[1752549201678,7.1167,2945.6,2944.5,3.396092]
[1752549201834,0.4637,2945.5,2944.5,3.39606487]
[1752549202039,3.85871527,2945.5,2944.2,0.8193]